Cogmind - Beta 14 @@@ ROGUE MODE // 2025.03.31 @ 18:57:50 Player: golanco Result: Destroyed by G-47 Trooper with Particle Gun Performance ------------- Evolutions (2) 1000 Regions Visited (5) 1000 Robots Destroyed (57) 285 Value Destroyed (1182) 1182 Prototype IDs (23) 460 Alien Tech Used (0) 0 Bonus (332) 332 TOTAL SCORE: 4259 Bonus ------- Follower Combat Kills 32 Aligned with FarCom 300 Cogmind --------- Core Integrity 0/550 Matter 174/300 Energy 28/100 System Corruption 0% Temperature Warm (139) Movement Treading (305) Ox2 Location -8/Materials Parts ------- > --- POWER (1) -------- (None) > --- PROPULSION (3) --- Advanced Treads > --- UTILITY (5) ------ High-capacity Storage Unit > --- WEAPON (2) ------- Heavy Ion Cannon > --- INVENTORY (20) --- Light Ion Engine Light Ion Engine Light Ion Engine Flight Unit Flight Unit Flight Unit Flight Unit Flight Unit Transport Network Coupler ECM Suite Trap Reconfigurator Particle Gun Particle Gun Light Assault Rifle Grenade Launcher Grenade Launcher Peak State ------------ > --- POWER ------------ Ion Engine > --- PROPULSION ------- Wheel Wheel Compact Wheel > --- UTILITY ---------- High-capacity Storage Unit Structural Scanner > --- WEAPON ----------- Heavy Ion Cannon Flak Cannon > --- INVENTORY -------- Light Ion Engine Light Ion Engine Light Ion Engine Flight Unit Flight Unit Flight Unit Flight Unit Flight Unit Structural Scanner Transport Network Coupler ECM Suite Trap Reconfigurator Particle Gun Particle Gun Light Assault Rifle Light Assault Rifle Grenade Launcher Grenade Launcher Grenade Launcher Grenade Launcher [Rating: 16] Favorites ----------- Power Ion Engine Engine Ion Engine Propulsion Light Treads Treads Light Treads Leg Carbon-fiber Leg Wheel Wheel Flight Unit Flight Unit Utility High-capacity Storage Unit Device Seismic Detector Storage High-capacity Storage Unit Weapon Particle Gun Energy Gun Particle Gun Energy Cannon Heavy Ion Cannon Ballistic Gun Light Assault Rifle Ballistic Cannon Light Cannon Launcher Grenade Launcher Build | -11 -10 -10 -10 -9 -8 ------- Run | Yrd Mat Min Exi Min Mat Slots Evolved 4 | . . . . . 4 Power . | . . . . . . Propulsion 1 | . . . . . 1 Utility 3 | . . . . . 3 Weapon . | . . . . . . Parts Attached 45 | 7 5 . . 11 22 Power 3 | 1 1 . . . 1 Engine 3 | 1 1 . . . 1 Core . | . . . . . . Reactor . | . . . . . . Propulsion 17 | 2 . . . 8 7 Treads 6 | 2 . . . 3 1 Leg 1 | . . . . 1 . Wheel 7 | . . . . 4 3 Hover . | . . . . . . Flight 3 | . . . . . 3 Utility 5 | 2 2 . . . 1 Device 2 | 1 . . . . 1 Storage 3 | 1 2 . . . . Processor . | . . . . . . Hackware . | . . . . . . Protection . | . . . . . . Artifact . | . . . . . . Weapon 20 | 2 2 . . 3 13 Energy Gun 3 | . 1 . . . 2 Energy Cannon 3 | . . . . . 3 Ballistic Gun 7 | 2 . . . 2 3 Ballistic Cannon 3 | . 1 . . . 2 Launcher 4 | . . . . 1 3 Special Weapon . | . . . . . . Impact Weapon . | . . . . . . Slashing Weapon . | . . . . . . Piercing Weapon . | . . . . . . Special Melee Weapon . | . . . . . . Unidentified Prototypes . | . . . . . . Parts Lost 19 | . 2 . . 3 14 Power 3 | . 1 . . . 2 Propulsion 7 | . 1 . . 1 5 Utility 1 | . . . . . 1 Weapon 8 | . . . . 2 6 Highest Loss Streak 9 | . 1 . . 2 9 To Critical Strikes 1 | . . . . 1 . Average Slot Usage (%) 78 | . 86 85 85 92 51 Engine 10 | . 10 14 14 14 5 Treads 11 | . 18 14 14 6 2 Wheel 5 | . . . . 12 13 Device 10 | . 14 14 14 13 2 Storage 12 | . 14 14 14 14 9 Energy Gun 8 | . 8 14 14 12 . Ballistic Gun 7 | . 10 . . 8 7 Ballistic Cannon 6 | . 8 14 14 . 1 Launcher 2 | . . . . 5 5 Peak Build Rating 16 | 7 9 8 9 13 16 Average Rating 8 | 5 7 8 8 11 8 On Entrance 7 | . 7 8 8 9 10 Naked Turns . | . . . . . . Heaviest Build 60 | 13 52 52 52 52 60 Greatest Support 46 | 40 40 20 20 46 46 Greatest Overweight (x) 16 | 3 2 2 2 16 4 Average Overweight (x) 1 | . 1 2 2 2 1 Largest Inventory Capacity 20 | 8 20 20 20 20 20 Average Capacity 19 | 7 19 20 20 20 20 Most Carried 20 | 3 20 18 19 20 20 Average Carried 16 | 1 16 18 18 19 16 Final Capacity 20 | 8 20 20 20 20 20 Final Carried 19 | 3 18 18 19 17 16 Class Distribution -------------------- 84% | Mutant 15% | Scavenger-Mutant Dominant Class ---------------- Mutant | -10/Materials Mutant | -10/Mines Mutant | -10/Exiles Scavenger-Mutant | -9/Mines Mutant | -8/Materials Resources | -11 -10 -10 -10 -9 -8 ----------- Run | Yrd Mat Min Exi Min Mat Matter Collected 1027 | 288 205 . . 202 332 Remotely . | . . . . . . Salvage Created 1535 | 93 545 . . 200 697 Parts 97 | 7 43 . . 15 32 Haulers Intercepted 3 | . 2 . . . 1 Recyclers Shooed 4 | . . . . 1 3 Parts Field Recycled . | . . . . . . Retrieved Matter . | . . . . . . Parts Self-Destructed . | . . . . . . Prevented . | . . . . . . Kills | -11 -10 -10 -10 -9 -8 ------- Run | Yrd Mat Min Exi Min Mat Combat Hostiles Destroyed 38 | . 13 . . 7 18 Guns 19 | . 11 . . 3 5 Cannons 9 | . 2 . . . 7 AOE 10 | . . . . 4 6 Classes Destroyed 12 | 2 5 . . 2 3 Worker 6 | . 2 . . 3 1 Builder 1 | . . . . . 1 Tunneler 3 | 2 . . . 1 . Hauler 3 | . 2 . . . 1 Recycler 5 | 1 2 . . . 2 Operator 1 | . 1 . . . . Swarmer 19 | . 9 . . 3 7 Grunt 12 | . 4 . . 2 6 Brawler 1 | . . . . 1 . Duelist 1 | . . . . 1 . Sentry 2 | . . . . . 2 Specialist 3 | . . . . . 3 Best Kill Streak 5 | 2 5 . . 3 5 Combat Bots Only 4 | . 4 . . 3 4 Max Kills in Single Turn 2 | 1 2 . . 1 2 Gunslinging 1 | . 1 . . . . Exploded 1 | . . . . 1 1 Melee . | . . . . . . Uniques/NPCs Destroyed . | . . . . . . Combat | -11 -10 -10 -10 -9 -8 -------- Run | Yrd Mat Min Exi Min Mat Hostile Shots Fired 248 | . 80 . . 24 144 Missed 69 | . 23 . . 7 39 Damage Taken 2379 | . 556 . . 201 1622 Core 750 | . 145 . . 48 557 Absorbed by Shields . | . . . . . . Core Remaining (%) 61 | 100 . . . 22 . Volleys Fired 162 | 9 68 . . 28 57 Largest 2 | 2 2 . . 2 2 Hottest 130 | 40 100 . . 100 130 Shots Fired 302 | 18 134 . . 52 98 Gun 221 | 18 113 . . 42 48 Cannon 56 | . 21 . . 2 33 Launcher 25 | . . . . 8 17 Special . | . . . . . . Kinetic 203 | 18 115 . . 18 52 Thermal 74 | . 19 . . 26 29 Explosive 25 | . . . . 8 17 Electromagnetic . | . . . . . . Robot Hit Streak 13 | 10 12 . . 9 13 Robot Miss Streak 6 | 2 6 . . 3 3 Penetration Max . | . . . . . . Secondary Targets 5 | . 4 . . 1 . Max Gunslinging Chain 1 | . 1 . . 1 . Shots Hit Robots 181 | 14 79 . . 23 65 Core Hits 102 | 5 32 . . 17 48 Critical Kills 1 | 1 . . . . . Critical Parts Destroyed . | . . . . . . Critical Strikes 4 | 1 2 . . 1 . Burn 2 | . 1 . . 1 . Destroy 1 | 1 . . . . . Blast 1 | . 1 . . . . Melee Attacks . | . . . . . . Impact . | . . . . . . Slashing . | . . . . . . Piercing . | . . . . . . Sneak Attacks . | . . . . . . Combat Hostiles . | . . . . . . Follow-up Attacks . | . . . . . . Damage Inflicted 3684 | 116 771 . . 656 2141 Guns 1275 | 116 611 . . 241 307 Cannons 734 | . 160 . . . 574 Explosions 1675 | . . . . 415 1260 Melee . | . . . . . . Ramming . | . . . . . . Kinetic 1279 | 116 669 . . 71 423 Thermal 1040 | . 102 . . 170 768 Explosive 1365 | . . . . 415 950 Electromagnetic . | . . . . . . Impact . | . . . . . . Slashing . | . . . . . . Piercing . | . . . . . . Highest Corruption . | . . . . . . Average Corruption . | . . . . . . Corruption Purged . | . . . . . . Corruption Blocked . | . . . . . . Overload Shots . | . . . . . . Overflow Damage 56 | . . . . 5 51 Projectiles . | . . . . . . Explosions 56 | . . . . 5 51 Melee . | . . . . . . Knockbacks 4 | . 3 . . . 1 Impact . | . . . . . . Kinetic 4 | . 3 . . . 1 Secondary . | . . . . . . Self-Inflicted Damage 230 | . . . . 40 190 Shots 7 | . . . . 1 6 Rammed . | . . . . . . Targets Rammed . | . . . . . . Kicked . | . . . . . . Crushed . | . . . . . . Highest Temperature 323 | . 156 . . 323 130 Average Temperature 59 | . 42 . . 97 28 Received Heat Transfer 666 | . 192 . . 33 441 Effects 2 | . . . . 2 . Interference 2 | . . . . 2 . Siege Activations . | . . . . . . Robots Corrupted . | . . . . . . Combat Hostiles . | . . . . . . Parts Fried . | . . . . . . Impact Corruptions . | . . . . . . Robots Melted . | . . . . . . Combat Hostiles . | . . . . . . Parts Melted 1 | . . . . . 1 Heat Transferred 1778 | . 333 . . 481 964 Parts Sabotaged . | . . . . . . Parts Stolen . | . . . . . . Parts Stripped . | . . . . . . Power Chain Reactions . | . . . . . . Alert | -11 -10 -10 -10 -9 -8 ------- Run | Yrd Mat Min Exi Min Mat Peak Influence 259 | 15 194 39 . 113 259 Initial 43 | . 9 39 . . 43 Average 64 | 6 41 38 . 76 102 Maximum Alert Level 1 | . . . . . 1 Low Security (%) 97 | 100 100 100 . 100 90 Level 1 2 | . . . . . 9 Level 2 . | . . . . . . Level 3 . | . . . . . . Level 4 . | . . . . . . Level 5 . | . . . . . . High Security . | . . . . . . Max Security . | . . . . . . Squads Dispatched 9 | . 1 1 . . 7 Investigation . | . . . . . . Extermination . | . . . . . . Reinforcement 6 | . 1 . . . 5 Assault 1 | . . 1 . . . Garrison 2 | . . . . . 2 Intercept . | . . . . . . Searches Triggered . | . . . . . . Construction Impeded 3 | . . . . . 3 Haulers Reinforced . | . . . . . . Active Scanning Responses . | . . . . . . Cargo Convoy Interrupts . | . . . . . . Stealth | -11 -10 -10 -10 -9 -8 --------- Run | Yrd Mat Min Exi Min Mat Distress Signals 3 | . 2 . . . 1 Communications Jammed . | . . . . . . Distress Signals . | . . . . . . Times Spotted 63 | . 30 . . 8 25 Peak Tracking Total 6 | . 6 . . 4 6 Tactical Retreats 4 | . 3 . . . 1 Traps | -11 -10 -10 -10 -9 -8 ------- Run | Yrd Mat Min Exi Min Mat Traps Triggered . | . . . . . . Indirectly . | . . . . . . Trap Hack Attempts . | . . . . . . Triggered . | . . . . . . Disarmed . | . . . . . . Reprogrammed . | . . . . . . Reused . | . . . . . . Traps Extracted . | . . . . . . Installed . | . . . . . . Triggered . | . . . . . . Machines | -11 -10 -10 -10 -9 -8 ---------- Run | Yrd Mat Min Exi Min Mat Machines Disabled 6 | . . . . 2 4 Max in Single Turn 2 | . . . . 1 2 Machines Repaired . | . . . . . . Machines Dismantled . | . . . . . . Machines Sabotaged . | . . . . . . Overloaded Fab Kills . | . . . . . . Hacking | -11 -10 -10 -10 -9 -8 --------- Run | Yrd Mat Min Exi Min Mat Machines Accessed 8 | . 6 . 2 . . Terminals 5 | . 5 . . . . Fabricators . | . . . . . . Repair Stations . | . . . . . . Recycling Units 1 | . 1 . . . . Scanalyzers . | . . . . . . Garrison Access . | . . . . . . Total Hacks 14 | . 12 . 2 . . Successful 5 | . 3 . 2 . . Failed 9 | . 9 . . . . Catastrophic 6 | . 6 . . . . Database Lockouts . | . . . . . . Manual 7 | . 6 . 1 . . Terminals 9 | . 9 . . . . Fabricators . | . . . . . . Repair Stations . | . . . . . . Recycling Units 3 | . 3 . . . . Scanalyzers . | . . . . . . Garrison Access . | . . . . . . Terminal Hacks 4 | . 2 . 2 . . Record 1 | . . . 1 . . Transport Status 1 | . 1 . . . . Hauler Manifests 1 | . 1 . . . . Derelict Proto ID Bank 1 | . . . 1 . . Fabricator Hacks . | . . . . . . Repair Station Hacks . | . . . . . . Recycling Unit Hacks . | . . . . . . Scanalyzer . | . . . . . . Garrison Access Hacks . | . . . . . . Unauthorized Hacks 1 | . 1 . . . . Terminals 1 | . 1 . . . . Botnet 1 | . 1 . . . . Fabricators . | . . . . . . Repair Stations . | . . . . . . Recycling Units . | . . . . . . Scanalyzers . | . . . . . . Garrison Access . | . . . . . . Data Cores Recovered . | . . . . . . Used . | . . . . . . Hacking Detections 4 | . 4 . . . . Full Trace Events . | . . . . . . Feedback Events . | . . . . . . Feedback Blocked . | . . . . . . Robot Schematics Acquired . | . . . . . . Robots Built . | . . . . . . Authchips . | . . . . . . Time . | . . . . . . Total Robot Build Rating . | . . . . . . Part Schematics Acquired . | . . . . . . Parts Built . | . . . . . . Authchips . | . . . . . . Time . | . . . . . . Total Part Build Rating . | . . . . . . Parts Repaired . | . . . . . . Time . | . . . . . . Parts Recycled . | . . . . . . Recycled Matter . | . . . . . . Retrieved Matter . | . . . . . . Retrieved Components . | . . . . . . Parts Scanalyzed . | . . . . . . Part Schematics Acquired . | . . . . . . Parts Damaged . | . . . . . . Bothacking | -11 -10 -10 -10 -9 -8 ------------ Run | Yrd Mat Min Exi Min Mat Used RIF Installer . | . . . . . . Robots Hacked . | . . . . . . Non-combat . | . . . . . . Combat . | . . . . . . Robot Hacks Applied . | . . . . . . Relay Couplers Released . | . . . . . . Fabnet Peak Effective % . | . . . . . . Robots Rewired . | . . . . . . Allies Hacked . | . . . . . . Hacks Repelled . | . . . . . . Allies | -11 -10 -10 -10 -9 -8 -------- Run | Yrd Mat Min Exi Min Mat Total Allies 3 | . . 1 . 2 . Largest Group 2 | . . 1 1 2 . Highest-Rated Group 39 | . . 31 31 39 . Highest-Rated Ally 31 | . . 31 31 31 . Total Orders . | . . . . . . Ally Attacks 23 | . . . . 23 . Total Damage 402 | . . . . 402 . Kills 3 | . . . . 3 . Allies Corrupted . | . . . . . . Allies Melted . | . . . . . . Intel | -11 -10 -10 -10 -9 -8 ------- Run | Yrd Mat Min Exi Min Mat Robot Analysis Total . | . . . . . . Derelict Logs Recovered 1 | . . . . 1 . Drone Launches . | . . . . . . Drone Recoveries . | . . . . . . Exploration | -11 -10 -10 -10 -9 -8 ------------- Run | Yrd Mat Min Exi Min Mat Turns Passed 5124 | 118 1850 406 667 786 1297 Spaces Moved 1539 | 52 565 43 209 341 329 Core 11 | 8 . . . 3 . Treads 1026 | 44 565 43 209 84 81 Legs 59 | . . . . 59 . Wheels 434 | . . . . 195 239 Hover . | . . . . . . Flight 9 | . . . . . 9 Fastest Speed 50 | 50 160 320 320 110 101 Average Speed 242 | 158 287 320 320 201 162 Slowest Speed 850 | 200 320 320 320 850 354 Overloaded Moves . | . . . . . . Propulsion Burnouts . | . . . . . . Robots Hopped . | . . . . . . Cave-ins Triggered . | . . . . . . Exploration Rate (%) 37 | 4 76 7 60 59 16 Regions Visited 5 Branch Regions 3 Pre-discovered Areas 1 | . . . 1 . . Known Exits Taken . | . . . . . . Unknown Exits Taken 5 | 1 1 1 1 1 . Scrap Searched 1 | . . . . 1 . Spaces Dug 6 | . . . . . 6 Terrain Destroyed 163 | . . . . 39 124 Melee . | . . . . . . Projectile 2 | . . . . . 2 AOE 161 | . . . . 39 122 Terrain Rammed . | . . . . . . Walls Destroyed . | . . . . . . Machines Disabled . | . . . . . . Actions | -11 -10 -10 -10 -9 -8 --------- Run | Yrd Mat Min Exi Min Mat Total 2664 | 70 680 313 209 393 999 Wait 864 | . 11 271 . 3 579 Move 1534 | 51 564 42 208 340 329 Hop . | . . . . . . Pick Up 34 | 3 23 . 1 3 4 Fast Attach 19 | 7 . . . 4 8 Attach 14 | . 1 . . 3 10 Detach 5 | . . . . . 5 Swap 12 | . 4 . . 4 4 Drop 20 | . 9 . . 8 3 Fire 162 | 9 68 . . 28 57 Melee . | . . . . . . Ram . | . . . . . . Kick . | . . . . . . Crush . | . . . . . . Escape Stasis . | . . . . . . Rewire . | . . . . . . Trap . | . . . . . . Miscellaneous . | . . . . . . Route ------- -11/Scrapyard -10/Materials (discovered 5 exits: [*Mat x3] / [*Min x2]) -10/Mines -10/Exiles -9/Mines -8/Materials (discovered 1 exit: Fac) History --------- Turn | Location | Event 12 | -11/Scrapyard | Discovered new exit (range 16) 119 | -11/Scrapyard | Entered Materials 283 | -10/Materials | Discovered new exit (range 9) 307 | -10/Materials | Build established: Mutant 349 | -10/Materials | Discovered new exit (range 6) 625 | -10/Materials | Discovered new exit (range 13) 719 | -10/Materials | Derelicts attacked the area 1438 | -10/Materials | Discovered new exit (range 9) 1894 | -10/Materials | Core integrity fell below 50% 1944 | -10/Materials | Discovered new exit (range 8) 1969 | -10/Materials | Entered Mines 1970 | -10/Mines | Met a Derelict testing a Signal Generator 1990 | -10/Mines | Assembled infested the area 2359 | -10/Mines | Deemed a non-threat by the Exiles lab entrance 2359 | -10/Mines | Discovered new exit (range 5) 2375 | -10/Mines | Entered Exiles 2375 | -10/Exiles | Accompanied by 1 ally 2452 | -10/Exiles | Met 8R-AWN 2507 | -10/Exiles | Met EX-HEX 2593 | -10/Exiles | Met EX-BIN 2635 | -10/Exiles | Aligned with FarCom system 2638 | -10/Exiles | Given EX-Vault access code 2711 | -10/Exiles | Opened EX-Vault 2727 | -10/Exiles | Found Trap Reconfigurator 2792 | -10/Exiles | Warned to stay clear of 0b10 Research branches 2885 | -10/Exiles | Met EX-DEC 2904 | -10/Exiles | Learned location of Zion (-6) 2997 | -10/Exiles | Discovered new exit (range 14) 3042 | -10/Exiles | Left Exiles lab with Trap Reconfigurator 3042 | -10/Exiles | Entered Mines 3042 | -9/Mines | Accompanied by 1 ally 3285 | -9/Mines | Learned 2 Materials zone layouts 3392 | -9/Mines | Build established: Scavenger-Mutant 3799 | -9/Mines | Discovered new exit (range 11) 3828 | -9/Mines | Entered Materials 3828 | -8/Materials | Evolved 4 slots: Propulsion x1, Utility x3 3829 | -8/Materials | Identified exit to Factory 3860 | -8/Materials | Build established: Mutant 4133 | -8/Materials | Lost 3 parts (1n2w) 4856 | -8/Materials | Garrison activated, responded to threat 5064 | -8/Materials | Build established: Scavenger-Mutant 5098 | -8/Materials | Garrison activated, responded to threat 5099 | -8/Materials | Core integrity fell below 50% 5117 | -8/Materials | Core integrity fell below 20% 5125 | -8/Materials | Destroyed by G-47 Trooper with Particle Gun Last Messages --------------- Wheel destroyed. X-57 Shotgunner destroyed. ALERT: Construction progress impeded, dispatching reinforcements to local area. U-05 Engineer sends out distress signal. Penetrated by Slug. Com. Wheel destroyed. Penetrated by Slug. X-62 Marksman destroyed. Grenade Launcher destroyed. Penetrated by Slug. Flak Cannon destroyed. Penetrated by Slug. The unstable cave ceiling collapses. Structural Scanner destroyed. Critical hit (Burn: +37). X-57 Shotgunner destroyed. Penetrated by Slug. Lgt. Assault Rifle destroyed. Critical hit (Burn: +37). Map ----- +----------------------------------------------------+ | ?????????????????????????????????????????????????? | | ?????????????????????????????????????????????????? | | ?????????????????????????????????????????????????? | | ?????????????????????????????????????????????????? | | ?????????????????????????????????????????????????? | | ?????????????????????????????????????????????????? | | ?????????????????????????## ?????????????????????? | | ?????????????????????????## ?????????????????????? | | ???????????????????????#### ## ??????????????????? | | ?????????????????????###### ###??????????????????? | | ?????????????????????#### ###????????????????? | | ????????????????????? ###????????????????? | | ????????????????H????? ????????????????? | | ????????????????????? Y ##????????????????? | | ????????????????????### % gg ###???????????????? | | ????????????????????### g#x ###???????????????? | | ???????????????????### ###??????????????? | | ???????????????????### # ###??????????????? | | ???????????????????## [%* ##??????????????? | | ????????????????????## ###??????????????? | | ????????????????????## ;##???????????????? | | ????????????????????## ; %% ;##???????????????? | | ????????????????????## ]! ;;;###???????????????? | | ????????????????????## ; ##????????????????? | | ????????????????????## ; ; ###??############??? | | ????????????????????### ;@# ####???############??? | | ??????????????????##### # # ####???## ##??? | | ??????????????????####### # ##?????## ##### | | ??????????????????##]] ## # ##????### ##### | | ??????????????????##] %# # ###?##### # | | ??????????????????##!! ## ####### ### # | | ??????????????????##!! ########## #!""" | | ??????????????????##!! ]]% +% # """ | | ??????????????????##!! ########## !# """ | | ??????????????????####### #### # % # """ | | ??????????????????####### #### #+####+### | | ?????????????????######## ##?# # ## # """ | | ?????????????????######## ##?# # ## ] # """ | | ?????????????????## # ##?# # ## + """ | | ?????????????????## # ##?# # ## # """ | | ?????????????????## """ + ##?##+#+### ## # | | ?????????????????## """ # ##### ###### | | ?????????????????## """ # ## ## # | | ?????????????????## [ + # """ | | ?????????????????## ########+### # """ | | ?????????????????########## [ # # """ | | ?????????????????## ## "" # # | | ??????????????????#""" ## "R" # + """ | | ??????????????????#""" ## " " # # """ | | ??????????????????#""" ## # # """ | +----------------------------------------------------+ Best States ------------- Heat Dissipation 31 Energy Generation 10 Energy Capacity 250 Matter Stores 300 Matter Capacity 300 Sight Range 16 Terrain Scan Density 10 Evasion (%) 40 Recoil Reduction 2 Item Schematics ----------------- None Robot Schematics ------------------ None Fabricated ------------ Nothing Alien Tech Used ----------------- None Achievements -------------- None Challenges ------------ None Game ------ Seed DerelictThiefPropulsion Manual? 0 Play Time 00:24:29 Cumulative 33.2 hours Start 2025.03.31 @ 18:34:50 End 2025.03.31 @ 18:57:50 Sessions 1 Manual Loads 0 Difficulty Rogue Special Mode None Game No. 91 Rogue 91 Adventurer 0 Explorer 0 Win Type - Total 0 Types 0/0/0/0/0/0/0/0/0 Lore% 16 Gallery% 24 Achievement% 25 Wizard Run 0 Options --------- Layout 1 ASCII 0 Keyboard 0 Movement Mouse Keybinds 0 Fullscreen 1 Font 36/Smallcaps Map View 50x40 Zoom Use 0% Tactical HUD 0 Map Filters NONE Filters NONE Steam 1 RUN: 216ffc47-669a-4373-8961-57d388a099ac